Workbook

Sheet Огляд вечірки
B3: Огляд вечірки
B6: ПОДІЯ | D6: СТИСЛИЙ ОПИС ГОСТЕЙ | H6: ="КІЛЬКІСТЬ ОЧІКУВАНИХ ПІДТВЕРДЖЕНЬ: "&Кількість_очікуваних_підтверджень -> КІЛЬКІСТЬ ОЧІКУВАНИХ ПІДТВЕРДЖЕНЬ: 2
B7: 75-та річниця бабусі | D7: ОГЛЯД ВІДПОВІДЕЙ НА ЗАПРОШЕННЯ | F7: ВИТРАТИ НА ГОСТЯ | H7: СУМА БЮДЖЕТУ
D8: Підтверджені гості | E8: Усього підтверджено | F8: Продукти | G8: Інше | H8: Усього
B9: ДАТА | D9: Дорослі | E9: =SUMIF(Таблиця_для_гостей[ПРИЙДУТЬ?],"=Так",Таблиця_для_гостей[ДОРОСЛІ]) -> 26 | F9: =Таблиця_для_їжі[[#Totals],[ВАРТІСТЬ НА ДОРОСЛОГО]] -> 12.69₴ | G9: =Основні_витрати_на_гостя -> 18.70₴ | H9: =(Зведення_для_учасників[[#This Row],[Продукти]]+Зведення_для_учасників[[#This Row],[Інше]])*Кількість_дорослих -> 816.03₴
B10: 2011-06-14 | D10: Діти | E10: =SUMIF(Таблиця_для_гостей[ПРИЙДУТЬ?],"=Так",Таблиця_для_гостей[ДІТИ]) -> 20 | F10: =Таблиця_для_їжі[[#Totals],[ВАРТІСТЬ НА ДИТИНУ]] -> 7.25₴ | G10: =Основні_витрати_на_гостя -> 18.70₴ | H10: =(Зведення_для_учасників[[#This Row],[Продукти]]+Зведення_для_учасників[[#This Row],[Інше]])*Кількість_дітей -> 518.97₴
D11: Підсумок | E11: =SUBTOTAL(109,Зведення_для_учасників[Усього підтверджено]) -> 46 | F11: ="Сер. "&TEXT(SUBTOTAL(101,Зведення_для_учасників[Продукти]),"# ##0,00₴") -> Сер. 9,97₴ | G11: ="Сер. "&TEXT(SUBTOTAL(101,Зведення_для_учасників[Інше]),"# ##0,00₴") -> Сер. 18,70₴ | H11: =SUBTOTAL(109,Зведення_для_учасників[Усього]) -> 1,335.00₴
B12: ЧАС
B13: 14:00–16:00
B15: РОЗТАШУВАННЯ | D15: СТИСЛИЙ ОПИС БЮДЖЕТУ
B16: Будинок тітки Оксани | D16: ЕЛЕМЕНТ | E16: КІЛЬКІСТЬ | F16: СУМА БЮДЖЕТУ | G16: ЗАГАЛЬНІ ВИТРАТИ | H16: РІЗНИЦЯ
D17: Їжа та напої | E17: =COUNTA(Таблиця_для_їжі[ПРОДУКТИ ТА НАПОЇ – ОКРЕМІ КОМПОНЕНТИ]) -> 18 | F17: 500.00₴ | G17: =Таблиця_для_їжі[[#Totals],[ЗАГАЛЬНІ ВИТРАТИ]] -> 475.00₴ | H17: =Огляд_бюджету[[#This Row],[СУМА БЮДЖЕТУ]]-Огляд_бюджету[[#This Row],[ЗАГАЛЬНІ ВИТРАТИ]] -> 25.00₴
D18: =Таблиця_1__заголовок -> Обладнання та витратні матеріали | E18: =COUNTA(Таблиця_1__бюджет[Обладнання та витратні матеріали]) -> 7 | F18: 400.00₴ | G18: =Таблиця_1__бюджет[[#Totals],[Вартість]] -> 400.00₴ | H18: =Огляд_бюджету[[#This Row],[СУМА БЮДЖЕТУ]]-Огляд_бюджету[[#This Row],[ЗАГАЛЬНІ ВИТРАТИ]] -> 0.00₴
D19: =Таблиця_2__заголовок -> Оздоблення | E19: =COUNTA(Таблиця_2__бюджет[Оздоблення]) -> 4 | F19: 150.00₴ | G19: =Таблиця_2__бюджет[[#Totals],[Вартість]] -> 175.00₴ | H19: =Огляд_бюджету[[#This Row],[СУМА БЮДЖЕТУ]]-Огляд_бюджету[[#This Row],[ЗАГАЛЬНІ ВИТРАТИ]] -> -25.00₴
D20: =Таблиця_3__заголовок -> Інше | E20: =COUNTA(Таблиця_3__бюджет[Інше]) -> 4 | F20: 300.00₴ | G20: =Таблиця_3__бюджет[[#Totals],[Вартість]] -> 285.00₴ | H20: =Огляд_бюджету[[#This Row],[СУМА БЮДЖЕТУ]]-Огляд_бюджету[[#This Row],[ЗАГАЛЬНІ ВИТРАТИ]] -> 15.00₴
D21: Підсумок | E21: =SUBTOTAL(109,Огляд_бюджету[КІЛЬКІСТЬ]) -> 33 | F21: =SUBTOTAL(109,Огляд_бюджету[СУМА БЮДЖЕТУ]) -> 1,350.00₴ | G21: =SUBTOTAL(109,Огляд_бюджету[ЗАГАЛЬНІ ВИТРАТИ]) -> 1,335.00₴ | H21: =SUBTOTAL(109,Огляд_бюджету[РІЗНИЦЯ]) -> 15.00₴

Sheet Список гостей
B3: Список гостей
B7: ІМ’Я | C7: АДРЕСА | D7: МІСТО | E7: КРАЇНА | F7: ПОШТОВИЙ ІНДЕКС | G7: НОМЕР ТЕЛЕФОНУ | H7: ЕЛЕКТРОННА ПОШТА | I7: ПРИЙДУТЬ? | J7: ДІТИ | K7: ДОРОСЛІ | L7: УСЬОГО
B8: Родина 1 | C8: Адреса 1 | D8: Місто 1 | E8: Область 1 | F8: Поштовий індекс 1 | G8: Телефон 1 | H8: Адреса електронної пошти 1 | I8: Ні | J8: 2 | K8: 2 | L8: =SUM(Таблиця_для_гостей[[#This Row],[ДІТИ]:[ДОРОСЛІ]]) -> 4
B9: Родина 2 | C9: Адреса 2 | D9: Місто 2 | E9: Область 2 | F9: Поштовий індекс 2 | G9: Телефон 2 | H9: Адреса електронної пошти 2 | I9: Так | J9: 1 | K9: 1 | L9: =SUM(Таблиця_для_гостей[[#This Row],[ДІТИ]:[ДОРОСЛІ]]) -> 2
B10: Родина 3 | C10: Адреса 3 | D10: Місто 3 | E10: Область 3 | F10: Поштовий індекс 3 | G10: Телефон 3 | H10: Адреса електронної пошти 3 | I10: Так | J10: 3 | K10: 3 | L10: =SUM(Таблиця_для_гостей[[#This Row],[ДІТИ]:[ДОРОСЛІ]]) -> 6
B11: Родина 4 | C11: Адреса 4 | D11: Місто 4 | E11: Область 4 | F11: Поштовий індекс 4 | G11: Телефон 4 | H11: Адреса електронної пошти 4 | K11: 2 | L11: =SUM(Таблиця_для_гостей[[#This Row],[ДІТИ]:[ДОРОСЛІ]]) -> 2
B12: Родина 5 | C12: Адреса 5 | D12: Місто 5 | E12: Область 5 | F12: Поштовий індекс 5 | G12: Телефон 5 | H12: Адреса електронної пошти 5 | I12: Так | J12: 4 | K12: 3 | L12: =SUM(Таблиця_для_гостей[[#This Row],[ДІТИ]:[ДОРОСЛІ]]) -> 7
B13: Родина 6 | C13: Адреса 6 | D13: Місто 6 | E13: Область 6 | F13: Поштовий індекс 6 | G13: Телефон 6 | H13: Адреса електронної пошти 6 | I13: Так | J13: 2 | K13: 2 | L13: =SUM(Таблиця_для_гостей[[#This Row],[ДІТИ]:[ДОРОСЛІ]]) -> 4
B14: Родина 7 | C14: Адреса 7 | D14: Місто 7 | E14: Область 7 | F14: Поштовий індекс 7 | G14: Телефон 7 | H14: Адреса електронної пошти 7 | I14: Так | J14: 1 | K14: 4 | L14: =SUM(Таблиця_для_гостей[[#This Row],[ДІТИ]:[ДОРОСЛІ]]) -> 5
B15: Родина 8 | C15: Адреса 8 | D15: Місто 8 | E15: Область 8 | F15: Поштовий індекс 8 | G15: Телефон 8 | H15: Адреса електронної пошти 8 | I15: Ні | J15: 5 | K15: 3 | L15: =SUM(Таблиця_для_гостей[[#This Row],[ДІТИ]:[ДОРОСЛІ]]) -> 8
B16: Родина 9 | C16: Адреса 9 | D16: Місто 9 | E16: Область 9 | F16: Поштовий індекс 9 | G16: Телефон 9 | H16: Адреса електронної пошти 9 | I16: Так | J16: 3 | K16: 2 | L16: =SUM(Таблиця_для_гостей[[#This Row],[ДІТИ]:[ДОРОСЛІ]]) -> 5
B17: Родина 10 | C17: Адреса 10 | D17: Місто 10 | E17: Область 10 | F17: Поштовий індекс 10 | G17: Телефон 10 | H17: Адреса електронної пошти 10 | I17: Так | K17: 4 | L17: =SUM(Таблиця_для_гостей[[#This Row],[ДІТИ]:[ДОРОСЛІ]]) -> 4
B18: Родина 11 | C18: Адреса 11 | D18: Місто 11 | E18: Область 11 | F18: Поштовий індекс 11 | G18: Телефон 11 | H18: Адреса електронної пошти 11 | I18: Так | J18: 3 | K18: 5 | L18: =SUM(Таблиця_для_гостей[[#This Row],[ДІТИ]:[ДОРОСЛІ]]) -> 8
B19: Родина 12 | C19: Адреса 12 | D19: Місто 12 | E19: Область 12 | F19: Поштовий індекс 12 | G19: Телефон 12 | H19: Адреса електронної пошти 12 | I19: Ні | J19: 2 | K19: 3 | L19: =SUM(Таблиця_для_гостей[[#This Row],[ДІТИ]:[ДОРОСЛІ]]) -> 5
B20: Родина 13 | C20: Адреса 13 | D20: Місто 13 | E20: Область 13 | F20: Поштовий індекс 13 | G20: Телефон 13 | H20: Адреса електронної пошти 13 | I20: Так | J20: 3 | K20: 2 | L20: =SUM(Таблиця_для_гостей[[#This Row],[ДІТИ]:[ДОРОСЛІ]]) -> 5
B21: Родина 14 | C21: Адреса 14 | D21: Місто 14 | E21: Область 14 | F21: Поштовий індекс 14 | G21: Телефон 14 | H21: Адреса електронної пошти 14 | I21: Ні | K21: 1 | L21: =SUM(Таблиця_для_гостей[[#This Row],[ДІТИ]:[ДОРОСЛІ]]) -> 1
B22: Родина 15 | C22: Адреса 15 | D22: Місто 15 | E22: Область 15 | F22: Поштовий індекс 15 | G22: Телефон 15 | H22: Адреса електронної пошти 15 | K22: 2 | L22: =SUM(Таблиця_для_гостей[[#This Row],[ДІТИ]:[ДОРОСЛІ]]) -> 2

Sheet Їжа та напої
B3: Їжа та напої
B5: Введіть витрати та приблизну економію, щоб автоматично розрахувати загальну кількість частин і суму витрат для кожної зекономленої одиниці, залежно від загальної кількості присутніх
B6: ПРОДУКТИ ТА НАПОЇ – ОКРЕМІ КОМПОНЕНТИ | C6: ЗАГАЛЬНІ ВИТРАТИ | D6: ПОРЦІЯ НА ДИТИНУ | E6: ПОРЦІЯ НА ДОРОСЛОГО | F6: УСЬОГО ПОРЦІЙ | G6: ВАРТІСТЬ ПОСЛУГИ | H6: ВАРТІСТЬ НА ДИТИНУ | I6: ВАРТІСТЬ НА ДОРОСЛОГО | J6: ПРИМІТКИ
B7: Мінеральна вода | C7: 15.00₴ | D7: 0.5 | E7: 2 | F7: =(Таблиця_для_їжі[[#This Row],[ПОРЦІЯ НА ДИТИНУ]]*Кількість_дітей)+(Таблиця_для_їжі[[#This Row],[ПОРЦІЯ НА ДОРОСЛОГО]]*Кількість_дорослих) -> 62 | G7: =IFERROR(Таблиця_для_їжі[[#This Row],[ЗАГАЛЬНІ ВИТРАТИ]]/Таблиця_для_їжі[[#This Row],[УСЬОГО ПОРЦІЙ]],"") -> 0.24₴ | H7: =IFERROR(Таблиця_для_їжі[[#This Row],[ВАРТІСТЬ ПОСЛУГИ]]*Таблиця_для_їжі[[#This Row],[ПОРЦІЯ НА ДИТИНУ]],"") -> 0.12₴ | I7: =IFERROR(Таблиця_для_їжі[[#This Row],[ВАРТІСТЬ ПОСЛУГИ]]*Таблиця_для_їжі[[#This Row],[ПОРЦІЯ НА ДОРОСЛОГО]],"") -> 0.48₴ | J7: 2-літрові пляшки
B8: Пакети із соком | C8: 15.00₴ | D8: 2 | E8: 0 | F8: =(Таблиця_для_їжі[[#This Row],[ПОРЦІЯ НА ДИТИНУ]]*Кількість_дітей)+(Таблиця_для_їжі[[#This Row],[ПОРЦІЯ НА ДОРОСЛОГО]]*Кількість_дорослих) -> 40 | G8: =IFERROR(Таблиця_для_їжі[[#This Row],[ЗАГАЛЬНІ ВИТРАТИ]]/Таблиця_для_їжі[[#This Row],[УСЬОГО ПОРЦІЙ]],"") -> 0.38₴ | H8: =IFERROR(Таблиця_для_їжі[[#This Row],[ВАРТІСТЬ ПОСЛУГИ]]*Таблиця_для_їжі[[#This Row],[ПОРЦІЯ НА ДИТИНУ]],"") -> 0.75₴ | I8: =IFERROR(Таблиця_для_їжі[[#This Row],[ВАРТІСТЬ ПОСЛУГИ]]*Таблиця_для_їжі[[#This Row],[ПОРЦІЯ НА ДОРОСЛОГО]],"") -> 0.00₴ | J8: Яблука та білий виноград
B9: Вино | C9: 50.00₴ | D9: 0 | E9: 2 | F9: =(Таблиця_для_їжі[[#This Row],[ПОРЦІЯ НА ДИТИНУ]]*Кількість_дітей)+(Таблиця_для_їжі[[#This Row],[ПОРЦІЯ НА ДОРОСЛОГО]]*Кількість_дорослих) -> 52 | G9: =IFERROR(Таблиця_для_їжі[[#This Row],[ЗАГАЛЬНІ ВИТРАТИ]]/Таблиця_для_їжі[[#This Row],[УСЬОГО ПОРЦІЙ]],"") -> 0.96₴ | H9: =IFERROR(Таблиця_для_їжі[[#This Row],[ВАРТІСТЬ ПОСЛУГИ]]*Таблиця_для_їжі[[#This Row],[ПОРЦІЯ НА ДИТИНУ]],"") -> 0.00₴ | I9: =IFERROR(Таблиця_для_їжі[[#This Row],[ВАРТІСТЬ ПОСЛУГИ]]*Таблиця_для_їжі[[#This Row],[ПОРЦІЯ НА ДОРОСЛОГО]],"") -> 1.92₴
B10: Торт | C10: 75.00₴ | D10: 1 | E10: 1 | F10: =(Таблиця_для_їжі[[#This Row],[ПОРЦІЯ НА ДИТИНУ]]*Кількість_дітей)+(Таблиця_для_їжі[[#This Row],[ПОРЦІЯ НА ДОРОСЛОГО]]*Кількість_дорослих) -> 46 | G10: =IFERROR(Таблиця_для_їжі[[#This Row],[ЗАГАЛЬНІ ВИТРАТИ]]/Таблиця_для_їжі[[#This Row],[УСЬОГО ПОРЦІЙ]],"") -> 1.63₴ | H10: =IFERROR(Таблиця_для_їжі[[#This Row],[ВАРТІСТЬ ПОСЛУГИ]]*Таблиця_для_їжі[[#This Row],[ПОРЦІЯ НА ДИТИНУ]],"") -> 1.63₴ | I10: =IFERROR(Таблиця_для_їжі[[#This Row],[ВАРТІСТЬ ПОСЛУГИ]]*Таблиця_для_їжі[[#This Row],[ПОРЦІЯ НА ДОРОСЛОГО]],"") -> 1.63₴ | J10: Замовити в місцевій пекарні
B11: Морозиво | C11: 20.00₴ | D11: 1 | E11: 1.5 | F11: =(Таблиця_для_їжі[[#This Row],[ПОРЦІЯ НА ДИТИНУ]]*Кількість_дітей)+(Таблиця_для_їжі[[#This Row],[ПОРЦІЯ НА ДОРОСЛОГО]]*Кількість_дорослих) -> 59 | G11: =IFERROR(Таблиця_для_їжі[[#This Row],[ЗАГАЛЬНІ ВИТРАТИ]]/Таблиця_для_їжі[[#This Row],[УСЬОГО ПОРЦІЙ]],"") -> 0.34₴ | H11: =IFERROR(Таблиця_для_їжі[[#This Row],[ВАРТІСТЬ ПОСЛУГИ]]*Таблиця_для_їжі[[#This Row],[ПОРЦІЯ НА ДИТИНУ]],"") -> 0.34₴ | I11: =IFERROR(Таблиця_для_їжі[[#This Row],[ВАРТІСТЬ ПОСЛУГИ]]*Таблиця_для_їжі[[#This Row],[ПОРЦІЯ НА ДОРОСЛОГО]],"") -> 0.51₴
B12: Розетки для десертів | C12: 15.00₴ | D12: 1 | E12: 0 | F12: =(Таблиця_для_їжі[[#This Row],[ПОРЦІЯ НА ДИТИНУ]]*Кількість_дітей)+(Таблиця_для_їжі[[#This Row],[ПОРЦІЯ НА ДОРОСЛОГО]]*Кількість_дорослих) -> 20 | G12: =IFERROR(Таблиця_для_їжі[[#This Row],[ЗАГАЛЬНІ ВИТРАТИ]]/Таблиця_для_їжі[[#This Row],[УСЬОГО ПОРЦІЙ]],"") -> 0.75₴ | H12: =IFERROR(Таблиця_для_їжі[[#This Row],[ВАРТІСТЬ ПОСЛУГИ]]*Таблиця_для_їжі[[#This Row],[ПОРЦІЯ НА ДИТИНУ]],"") -> 0.75₴ | I12: =IFERROR(Таблиця_для_їжі[[#This Row],[ВАРТІСТЬ ПОСЛУГИ]]*Таблиця_для_їжі[[#This Row],[ПОРЦІЯ НА ДОРОСЛОГО]],"") -> 0.00₴ | J12: Придбати стаканчики в упаковці: ванільне та шоколадне
B13: Фаршировані гриби | C13: 32.00₴ | D13: 1 | E13: 2 | F13: =(Таблиця_для_їжі[[#This Row],[ПОРЦІЯ НА ДИТИНУ]]*Кількість_дітей)+(Таблиця_для_їжі[[#This Row],[ПОРЦІЯ НА ДОРОСЛОГО]]*Кількість_дорослих) -> 72 | G13: =IFERROR(Таблиця_для_їжі[[#This Row],[ЗАГАЛЬНІ ВИТРАТИ]]/Таблиця_для_їжі[[#This Row],[УСЬОГО ПОРЦІЙ]],"") -> 0.44₴ | H13: =IFERROR(Таблиця_для_їжі[[#This Row],[ВАРТІСТЬ ПОСЛУГИ]]*Таблиця_для_їжі[[#This Row],[ПОРЦІЯ НА ДИТИНУ]],"") -> 0.44₴ | I13: =IFERROR(Таблиця_для_їжі[[#This Row],[ВАРТІСТЬ ПОСЛУГИ]]*Таблиця_для_їжі[[#This Row],[ПОРЦІЯ НА ДОРОСЛОГО]],"") -> 0.89₴ | J13: Шампіньйони, фаршировані вершковим сиром і ковбасою
B14: Бутерброди | C14: 22.00₴ | D14: 0 | E14: 3 | F14: =(Таблиця_для_їжі[[#This Row],[ПОРЦІЯ НА ДИТИНУ]]*Кількість_дітей)+(Таблиця_для_їжі[[#This Row],[ПОРЦІЯ НА ДОРОСЛОГО]]*Кількість_дорослих) -> 78 | G14: =IFERROR(Таблиця_для_їжі[[#This Row],[ЗАГАЛЬНІ ВИТРАТИ]]/Таблиця_для_їжі[[#This Row],[УСЬОГО ПОРЦІЙ]],"") -> 0.28₴ | H14: =IFERROR(Таблиця_для_їжі[[#This Row],[ВАРТІСТЬ ПОСЛУГИ]]*Таблиця_для_їжі[[#This Row],[ПОРЦІЯ НА ДИТИНУ]],"") -> 0.00₴ | I14: =IFERROR(Таблиця_для_їжі[[#This Row],[ВАРТІСТЬ ПОСЛУГИ]]*Таблиця_для_їжі[[#This Row],[ПОРЦІЯ НА ДОРОСЛОГО]],"") -> 0.85₴ | J14: Помідори та базилік
B15: Копчений лосось | C15: 50.00₴ | D15: 1 | E15: 2 | F15: =(Таблиця_для_їжі[[#This Row],[ПОРЦІЯ НА ДИТИНУ]]*Кількість_дітей)+(Таблиця_для_їжі[[#This Row],[ПОРЦІЯ НА ДОРОСЛОГО]]*Кількість_дорослих) -> 72 | G15: =IFERROR(Таблиця_для_їжі[[#This Row],[ЗАГАЛЬНІ ВИТРАТИ]]/Таблиця_для_їжі[[#This Row],[УСЬОГО ПОРЦІЙ]],"") -> 0.69₴ | H15: =IFERROR(Таблиця_для_їжі[[#This Row],[ВАРТІСТЬ ПОСЛУГИ]]*Таблиця_для_їжі[[#This Row],[ПОРЦІЯ НА ДИТИНУ]],"") -> 0.69₴ | I15: =IFERROR(Таблиця_для_їжі[[#This Row],[ВАРТІСТЬ ПОСЛУГИ]]*Таблиця_для_їжі[[#This Row],[ПОРЦІЯ НА ДОРОСЛОГО]],"") -> 1.39₴
B16: Бублики | C16: 20.00₴ | D16: 1 | E16: 2 | F16: =(Таблиця_для_їжі[[#This Row],[ПОРЦІЯ НА ДИТИНУ]]*Кількість_дітей)+(Таблиця_для_їжі[[#This Row],[ПОРЦІЯ НА ДОРОСЛОГО]]*Кількість_дорослих) -> 72 | G16: =IFERROR(Таблиця_для_їжі[[#This Row],[ЗАГАЛЬНІ ВИТРАТИ]]/Таблиця_для_їжі[[#This Row],[УСЬОГО ПОРЦІЙ]],"") -> 0.28₴ | H16: =IFERROR(Таблиця_для_їжі[[#This Row],[ВАРТІСТЬ ПОСЛУГИ]]*Таблиця_для_їжі[[#This Row],[ПОРЦІЯ НА ДИТИНУ]],"") -> 0.28₴ | I16: =IFERROR(Таблиця_для_їжі[[#This Row],[ВАРТІСТЬ ПОСЛУГИ]]*Таблиця_для_їжі[[#This Row],[ПОРЦІЯ НА ДОРОСЛОГО]],"") -> 0.56₴ | J16: 4 пакети – асорті
B17: Вершковий сир | C17: 10.00₴ | D17: 1 | E17: 2 | F17: =(Таблиця_для_їжі[[#This Row],[ПОРЦІЯ НА ДИТИНУ]]*Кількість_дітей)+(Таблиця_для_їжі[[#This Row],[ПОРЦІЯ НА ДОРОСЛОГО]]*Кількість_дорослих) -> 72 | G17: =IFERROR(Таблиця_для_їжі[[#This Row],[ЗАГАЛЬНІ ВИТРАТИ]]/Таблиця_для_їжі[[#This Row],[УСЬОГО ПОРЦІЙ]],"") -> 0.14₴ | H17: =IFERROR(Таблиця_для_їжі[[#This Row],[ВАРТІСТЬ ПОСЛУГИ]]*Таблиця_для_їжі[[#This Row],[ПОРЦІЯ НА ДИТИНУ]],"") -> 0.14₴ | I17: =IFERROR(Таблиця_для_їжі[[#This Row],[ВАРТІСТЬ ПОСЛУГИ]]*Таблиця_для_їжі[[#This Row],[ПОРЦІЯ НА ДОРОСЛОГО]],"") -> 0.28₴ | J17: 2 великі ящики
B18: Мариновані огірки | C18: 12.00₴ | D18: 1 | E18: 2 | F18: =(Таблиця_для_їжі[[#This Row],[ПОРЦІЯ НА ДИТИНУ]]*Кількість_дітей)+(Таблиця_для_їжі[[#This Row],[ПОРЦІЯ НА ДОРОСЛОГО]]*Кількість_дорослих) -> 72 | G18: =IFERROR(Таблиця_для_їжі[[#This Row],[ЗАГАЛЬНІ ВИТРАТИ]]/Таблиця_для_їжі[[#This Row],[УСЬОГО ПОРЦІЙ]],"") -> 0.17₴ | H18: =IFERROR(Таблиця_для_їжі[[#This Row],[ВАРТІСТЬ ПОСЛУГИ]]*Таблиця_для_їжі[[#This Row],[ПОРЦІЯ НА ДИТИНУ]],"") -> 0.17₴ | I18: =IFERROR(Таблиця_для_їжі[[#This Row],[ВАРТІСТЬ ПОСЛУГИ]]*Таблиця_для_їжі[[#This Row],[ПОРЦІЯ НА ДОРОСЛОГО]],"") -> 0.33₴ | J18: 3 банки
B19: Курячі крильця | C19: 45.00₴ | D19: 2 | E19: 4 | F19: =(Таблиця_для_їжі[[#This Row],[ПОРЦІЯ НА ДИТИНУ]]*Кількість_дітей)+(Таблиця_для_їжі[[#This Row],[ПОРЦІЯ НА ДОРОСЛОГО]]*Кількість_дорослих) -> 144 | G19: =IFERROR(Таблиця_для_їжі[[#This Row],[ЗАГАЛЬНІ ВИТРАТИ]]/Таблиця_для_їжі[[#This Row],[УСЬОГО ПОРЦІЙ]],"") -> 0.31₴ | H19: =IFERROR(Таблиця_для_їжі[[#This Row],[ВАРТІСТЬ ПОСЛУГИ]]*Таблиця_для_їжі[[#This Row],[ПОРЦІЯ НА ДИТИНУ]],"") -> 0.63₴ | I19: =IFERROR(Таблиця_для_їжі[[#This Row],[ВАРТІСТЬ ПОСЛУГИ]]*Таблиця_для_їжі[[#This Row],[ПОРЦІЯ НА ДОРОСЛОГО]],"") -> 1.25₴ | J19: Придбати в місцевому винному магазині
B20: Картопляне пюре | C20: 10.00₴ | D20: 4 | E20: 6 | F20: =(Таблиця_для_їжі[[#This Row],[ПОРЦІЯ НА ДИТИНУ]]*Кількість_дітей)+(Таблиця_для_їжі[[#This Row],[ПОРЦІЯ НА ДОРОСЛОГО]]*Кількість_дорослих) -> 236 | G20: =IFERROR(Таблиця_для_їжі[[#This Row],[ЗАГАЛЬНІ ВИТРАТИ]]/Таблиця_для_їжі[[#This Row],[УСЬОГО ПОРЦІЙ]],"") -> 0.04₴ | H20: =IFERROR(Таблиця_для_їжі[[#This Row],[ВАРТІСТЬ ПОСЛУГИ]]*Таблиця_для_їжі[[#This Row],[ПОРЦІЯ НА ДИТИНУ]],"") -> 0.17₴ | I20: =IFERROR(Таблиця_для_їжі[[#This Row],[ВАРТІСТЬ ПОСЛУГИ]]*Таблиця_для_їжі[[#This Row],[ПОРЦІЯ НА ДОРОСЛОГО]],"") -> 0.25₴ | J20: Приготування напередодні ввечері
B21: Салат «Олів’є» | C21: 14.00₴ | D21: 4 | E21: 6 | F21: =(Таблиця_для_їжі[[#This Row],[ПОРЦІЯ НА ДИТИНУ]]*Кількість_дітей)+(Таблиця_для_їжі[[#This Row],[ПОРЦІЯ НА ДОРОСЛОГО]]*Кількість_дорослих) -> 236 | G21: =IFERROR(Таблиця_для_їжі[[#This Row],[ЗАГАЛЬНІ ВИТРАТИ]]/Таблиця_для_їжі[[#This Row],[УСЬОГО ПОРЦІЙ]],"") -> 0.06₴ | H21: =IFERROR(Таблиця_для_їжі[[#This Row],[ВАРТІСТЬ ПОСЛУГИ]]*Таблиця_для_їжі[[#This Row],[ПОРЦІЯ НА ДИТИНУ]],"") -> 0.24₴ | I21: =IFERROR(Таблиця_для_їжі[[#This Row],[ВАРТІСТЬ ПОСЛУГИ]]*Таблиця_для_їжі[[#This Row],[ПОРЦІЯ НА ДОРОСЛОГО]],"") -> 0.36₴ | J21: Приготування напередодні ввечері
B22: Овочеве асорті | C22: 30.00₴ | D22: 4 | E22: 10 | F22: =(Таблиця_для_їжі[[#This Row],[ПОРЦІЯ НА ДИТИНУ]]*Кількість_дітей)+(Таблиця_для_їжі[[#This Row],[ПОРЦІЯ НА ДОРОСЛОГО]]*Кількість_дорослих) -> 340 | G22: =IFERROR(Таблиця_для_їжі[[#This Row],[ЗАГАЛЬНІ ВИТРАТИ]]/Таблиця_для_їжі[[#This Row],[УСЬОГО ПОРЦІЙ]],"") -> 0.09₴ | H22: =IFERROR(Таблиця_для_їжі[[#This Row],[ВАРТІСТЬ ПОСЛУГИ]]*Таблиця_для_їжі[[#This Row],[ПОРЦІЯ НА ДИТИНУ]],"") -> 0.35₴ | I22: =IFERROR(Таблиця_для_їжі[[#This Row],[ВАРТІСТЬ ПОСЛУГИ]]*Таблиця_для_їжі[[#This Row],[ПОРЦІЯ НА ДОРОСЛОГО]],"") -> 0.88₴ | J22: Морква, селера, броколі, цвітна капуста, червоний і зелений перець
B23: Налисники | C23: 15.00₴ | D23: 5 | E23: 10 | F23: =(Таблиця_для_їжі[[#This Row],[ПОРЦІЯ НА ДИТИНУ]]*Кількість_дітей)+(Таблиця_для_їжі[[#This Row],[ПОРЦІЯ НА ДОРОСЛОГО]]*Кількість_дорослих) -> 360 | G23: =IFERROR(Таблиця_для_їжі[[#This Row],[ЗАГАЛЬНІ ВИТРАТИ]]/Таблиця_для_їжі[[#This Row],[УСЬОГО ПОРЦІЙ]],"") -> 0.04₴ | H23: =IFERROR(Таблиця_для_їжі[[#This Row],[ВАРТІСТЬ ПОСЛУГИ]]*Таблиця_для_їжі[[#This Row],[ПОРЦІЯ НА ДИТИНУ]],"") -> 0.21₴ | I23: =IFERROR(Таблиця_для_їжі[[#This Row],[ВАРТІСТЬ ПОСЛУГИ]]*Таблиця_для_їжі[[#This Row],[ПОРЦІЯ НА ДОРОСЛОГО]],"") -> 0.42₴ | J23: Асорті: вершковий сир, гострий сир із горіхами
B24: Крекери | C24: 25.00₴ | D24: 5 | E24: 10 | F24: =(Таблиця_для_їжі[[#This Row],[ПОРЦІЯ НА ДИТИНУ]]*Кількість_дітей)+(Таблиця_для_їжі[[#This Row],[ПОРЦІЯ НА ДОРОСЛОГО]]*Кількість_дорослих) -> 360 | G24: =IFERROR(Таблиця_для_їжі[[#This Row],[ЗАГАЛЬНІ ВИТРАТИ]]/Таблиця_для_їжі[[#This Row],[УСЬОГО ПОРЦІЙ]],"") -> 0.07₴ | H24: =IFERROR(Таблиця_для_їжі[[#This Row],[ВАРТІСТЬ ПОСЛУГИ]]*Таблиця_для_їжі[[#This Row],[ПОРЦІЯ НА ДИТИНУ]],"") -> 0.35₴ | I24: =IFERROR(Таблиця_для_їжі[[#This Row],[ВАРТІСТЬ ПОСЛУГИ]]*Таблиця_для_їжі[[#This Row],[ПОРЦІЯ НА ДОРОСЛОГО]],"") -> 0.69₴ | J24: Асорті
B25: Підсумок | C25: =SUBTOTAL(109,Таблиця_для_їжі[ЗАГАЛЬНІ ВИТРАТИ]) -> 475.00₴ | D25: =SUBTOTAL(109,Таблиця_для_їжі[ПОРЦІЯ НА ДИТИНУ]) -> 34.5 | E25: =SUBTOTAL(109,Таблиця_для_їжі[ПОРЦІЯ НА ДОРОСЛОГО]) -> 65.5 | F25: =SUBTOTAL(109,Таблиця_для_їжі[УСЬОГО ПОРЦІЙ]) -> 2393 | G25: =SUBTOTAL(109,Таблиця_для_їжі[ВАРТІСТЬ ПОСЛУГИ]) -> 6.92₴ | H25: =SUBTOTAL(109,Таблиця_для_їжі[ВАРТІСТЬ НА ДИТИНУ]) -> 7.25₴ | I25: =SUBTOTAL(109,Таблиця_для_їжі[ВАРТІСТЬ НА ДОРОСЛОГО]) -> 12.69₴ | J25: =SUBTOTAL(109,Таблиця_для_їжі[ПРИМІТКИ]) -> 0

Sheet Інші важливі відомості
B3: Інші важливі речі
B6: Обладнання та витратні матеріали | C6: Вартість | D6: Придбано | E6: Примітки
B7: Оренда приміщення або зали | C7: 250.00₴ | D7: Так
B8: Столова білизна | C8: 30.00₴ | D8: Так | E8: Оренда
B9: Столи та стільці | C9: 0.00₴ | E9: Включно з орендою зали
B10: Серветки під напої | C10: 25.00₴
B11: Столові серветки | C11: 20.00₴ | E11: Оренда
B12: Столове обслуговування | C12: 50.00₴ | E12: Оренда
B13: Посуд | C13: 25.00₴ | E13: Оренда
B14: Підсумок | C14: =SUBTOTAL(109,Таблиця_1__бюджет[Вартість]) -> 400.00₴
B17: Оздоблення | C17: Вартість | D17: Придбано | E17: Примітки
B18: Повітряні кульки | C18: 25.00₴
B19: Балон гелію | C19: 50.00₴ | E19: Оренда
B20: Центральний елемент оздоблення | C20: 100.00₴ | D20: Так | E20: Усього 10
B21: Скляні вази | C21: 0.00₴ | E21: Оренда в Софії
B22: Підсумок | C22: =SUBTOTAL(109,Таблиця_2__бюджет[Вартість]) -> 175.00₴
B25: Інше | C25: Вартість | D25: Придбано | E25: Примітки
B26: Запрошення | C26: 50.00₴ | D26: Так
B27: Поштові витрати | C27: 60.00₴ | D27: Так
B28: Фотограф | C28: 125.00₴ | E28: 2 години (14:00–16:00)
B29: Сувенірі для вечірки | C29: 50.00₴
B30: Підсумок | C30: =SUBTOTAL(109,Таблиця_3__бюджет[Вартість]) -> 285.00₴

Sheet План розміщення гостей
A1: Розміщення за столом
AH35: *1 квадрат = приблизно 1 квадратному метру
A36: Примітки | T36: =" Усього гостей із підтвердженням: "&Кількість_гостей_із_підтвердженням -> Усього гостей із підтвердженням: 46
T37: Можна використати лише таку розстановку столів:
U38: =ROUNDUP(Кількість_гостей_із_підтвердженням/6,0)&" круглі столи, 137 сантиметрів (6 місць)" -> 8 круглі столи, 137 сантиметрів (6 місць)
U39: =ROUNDUP(Кількість_гостей_із_підтвердженням/8,0) &" круглі столи, 153 сантиметри (8 місць)" -> 6 круглі столи, 153 сантиметри (8 місць)
U40: =ROUNDUP(Кількість_гостей_із_підтвердженням/10,0)&" круглі столи, 183 сантиметри (10 місць)" -> 5 круглі столи, 183 сантиметри (10 місць)
U41: =ROUNDUP(Кількість_гостей_із_підтвердженням/6,0)& " квадратні столи, 76х183 сантиметри (6 місць)" -> 8 квадратні столи, 76х183 сантиметри (6 місць)
U42: =ROUNDUP(Кількість_гостей_із_підтвердженням/8,0)&" квадратні столи 76х244 сантиметри (8 місць)" -> 6 квадратні столи 76х244 сантиметри (8 місць)
T43: (Бажана відстань між столами: 1 метр)
